bitfinex/quotes_BTCUSD_20251007
["timestamp","ask_amount","ask_price","bid_price","bid_amount"]
[1759880505701,1.65595426,121600.0,121590.0,0.00402662]
[1759880506314,1.72074089,121600.0,121590.0,0.00402662]
[1759880506517,1.65595426,121600.0,121590.0,0.00402662]
[1759880507775,1.15679326,121600.0,121590.0,0.00402662]
[1759880507982,1.47647326,121600.0,121590.0,0.00402662]
[1759880510201,1.47660519,121600.0,121590.0,0.00402662]
[1759880510423,1.39104519,121600.0,121590.0,0.00402662]
[1759880510618,1.47660519,121600.0,121590.0,0.00402662]
[1759880510849,1.15692519,121600.0,121590.0,0.00402662]
[1759880511000,1.47660519,121600.0,121590.0,0.00402662]
[1759880511532,1.15692519,121600.0,121590.0,0.00402662]
[1759880511752,0.48415368,121600.0,121590.0,0.07172662]
[1759880511914,0.16447368,121600.0,121590.0,0.08170662]
[1759880512310,0.48415368,121600.0,121590.0,0.08170662]
[1759880513272,0.16447368,121600.0,121590.0,0.24619383]
[1759880513447,0.39859368,121600.0,121590.0,0.24619383]
[1759880515208,0.81649985,121600.0,121590.0,0.24619383]
[1759880516536,0.16447206,121610.0,121590.0,0.32931589]
[1759880516750,0.39859368,121600.0,121590.0,0.28600927]
[1759880516982,0.39859368,121600.0,121590.0,0.30495927]
[1759880517318,0.39859368,121600.0,121590.0,0.32500927]
[1759880517734,0.70093823,121610.0,121600.0,0.16447368]
[1759880517958,0.93505823,121610.0,121600.0,0.17977368]
[1759880518178,0.90205823,121610.0,121600.0,0.0573]
[1759880519729,0.16447368,121600.0,121590.0,0.08312206]
[1759880519966,1.00741602,121600.0,121580.0,0.20650054]
[1759880520148,0.65198617,121590.0,121580.0,0.2805926]
[1759880520580,0.65198617,121590.0,121580.0,0.3139226]
[1759880520773,0.65198617,121590.0,121580.0,0.3231326]
[1759880521201,0.65198617,121590.0,121580.0,0.3241326]
[1759880521412,0.65298617,121590.0,121580.0,0.3241326]
[1759880522787,0.65298617,121590.0,121580.0,0.3231326]
[1759880522983,0.65298617,121590.0,121580.0,0.3241326]
[1759880524310,0.23508,121590.0,121580.0,0.3241326]
[1759880525318,0.001,121590.0,121580.0,0.3241326]
[1759880525730,0.23508,121590.0,121580.0,0.3241326]
[1759880526449,0.001,121590.0,121580.0,0.3241326]
[1759880526606,0.23508,121590.0,121580.0,0.3241326]
[1759880527224,0.65298617,121590.0,121580.0,0.3241326]
[1759880527421,0.81747338,121590.0,121580.0,0.3059226]
[1759880527619,0.81747338,121590.0,121580.0,0.27449265]
[1759880527844,0.81747338,121590.0,121580.0,0.29754265]
[1759880528068,0.65298617,121590.0,121580.0,0.30746265]
[1759880529173,0.65298617,121590.0,121580.0,0.31646265]
[1759880529540,1.29424027,121590.0,121580.0,0.02687005]
[1759880529749,1.29870027,121590.0,121580.0,0.00254005]
[1759880530063,0.8807941,121590.0,121580.0,0.00254005]
[1759880530336,1.29870027,121590.0,121580.0,0.00254005]
[1759880530520,1.24696955,121590.0,121580.0,0.00254005]
[1759880531282,0.82906338,121590.0,121580.0,0.00254005]
[1759880532301,0.40669721,121590.0,121580.0,0.00254005]
[1759880532719,0.82360338,121590.0,121580.0,0.00254005]
[1759880533159,0.82660338,121590.0,121580.0,0.00254005]
[1759880533342,0.82660338,121590.0,121580.0,0.02587005]
[1759880533751,0.82760338,121590.0,121580.0,0.02587005]
[1759880533963,0.82760338,121590.0,121580.0,0.00154005]
[1759880534752,0.59352338,121590.0,121580.0,0.00154005]
[1759880535105,0.91316338,121590.0,121580.0,0.01057005]
[1759880535660,0.49521721,121590.0,121580.0,0.02587005]
[1759880536010,0.91312338,121590.0,121580.0,0.02587005]
[1759880538243,0.91312338,121590.0,121580.0,0.00154005]
[1759880539054,1.34869642,121590.0,121580.0,0.00154005]
[1759880539233,0.93079025,121590.0,121580.0,0.00154005]
[1759880539446,1.34869642,121590.0,121580.0,0.00154005]
[1759880539668,0.93079025,121590.0,121580.0,0.00154005]
[1759880539869,0.91758338,121590.0,121580.0,0.00154005]
[1759880540151,0.91312338,121590.0,121580.0,0.00154005]
[1759880540355,0.51991957,121590.0,121580.0,0.00154005]
[1759880540566,0.93782574,121590.0,121580.0,0.00154005]
[1759880543122,0.93782574,121590.0,121580.0,0.02587005]
[1759880546098,0.93782574,121590.0,121580.0,0.01057005]
[1759880547053,0.93782574,121590.0,121580.0,0.00154005]
[1759880547781,2.21690971,121590.0,121580.0,0.00154005]
[1759880548373,2.19220735,121590.0,121580.0,0.00154005]
[1759880548735,2.19666735,121590.0,121580.0,0.00154005]
[1759880549233,2.22137191,121590.0,121580.0,0.00154005]
[1759880549669,7.09210208,121590.0,121580.0,0.00154005]
[1759880549871,2.28567914,121590.0,121580.0,0.00154005]
[1759880550139,7.17522414,121590.0,121580.0,0.00154005]
[1759880550271,8.45909455,121590.0,121580.0,0.00154005]
[1759880550476,8.45909455,121590.0,121550.0,0.01340363]
[1759880550477,0.5045278,121560.0,121550.0,0.01340363]
[1759880550700,2.30634685,121560.0,121550.0,0.01340363]
[1759880550882,2.32239685,121560.0,121550.0,0.01340363]
[1759880551087,2.34710853,121560.0,121550.0,0.01494426]
[1759880551347,1.92920236,121560.0,121550.0,0.01494426]
[1759880551551,3.18292087,121560.0,121550.0,0.01494426]
[1759880551699,3.24445223,121560.0,121550.0,0.01544835]
[1759880551898,7.24347129,121560.0,121550.0,0.01544835]
[1759880552111,7.01116929,121560.0,121550.0,0.01544835]
[1759880552319,7.02477129,121560.0,121550.0,0.01544835]
[1759880552523,4.79685378,121560.0,121550.0,0.01544835]
[1759880552732,8.57863428,121560.0,121550.0,1e-08]
[1759880552978,8.35907426,121560.0,121550.0,1e-08]
[1759880553381,9.02095426,121560.0,121550.0,1e-08]
[1759880553583,9.01795426,121560.0,121550.0,1e-08]
[1759880553792,9.13381063,121560.0,121550.0,1e-08]
[1759880553942,9.47409063,121560.0,121550.0,1e-08]
[1759880554146,9.38753063,121560.0,121550.0,1e-08]
[1759880554367,9.40553063,121560.0,121550.0,1e-08]
[1759880554584,6.64783192,121530.0,121520.0,0.0002]
[1759880554793,7.13105485,121530.0,121520.0,0.0002]
[1759880554998,7.14710485,121530.0,121520.0,0.0002]
[1759880555215,7.17725675,121530.0,121520.0,0.0002]
[1759880555416,6.43975058,121530.0,121520.0,0.0002]
[1759880555647,7.10167058,121530.0,121520.0,0.0002]
[1759880555890,7.53757675,121530.0,121520.0,0.0022]
[1759880556261,6.28385824,121530.0,121520.0,0.0022]
[1759880556486,7.54585063,121530.0,121520.0,0.0022]
[1759880556606,7.58385063,121530.0,121520.0,0.0042]
[1759880556816,2.69430563,121530.0,121520.0,0.0042]
[1759880557021,7.58385063,121530.0,121520.0,0.0042]
[1759880557861,6.92193063,121530.0,121520.0,0.0042]
[1759880558061,7.58393063,121530.0,121520.0,0.0042]
[1759880558270,6.33021212,121530.0,121520.0,0.0042]
[1759880558447,7.58393063,121530.0,121520.0,0.0042]
[1759880559054,7.60865276,121530.0,121520.0,0.0042]
[1759880559248,2.71910776,121530.0,121520.0,0.0042]
[1759880559593,7.60865276,121530.0,121520.0,0.0042]
[1759880559798,7.62384161,121530.0,121520.0,0.0042]
[1759880560165,2.73429661,121530.0,121520.0,0.0057412]
[1759880560369,7.6488416,121530.0,121520.0,0.0057412]
[1759880560576,5.3941405,121510.0,121500.0,5.0048]
[1759880560799,7.09125977,121510.0,121500.0,5.0048]
[1759880561008,2.20171477,121510.0,121500.0,5.0048]
[1759880561377,7.13830949,121510.0,121500.0,5.0048]
[1759880561586,7.23830947,121510.0,121500.0,5.0048]
[1759880561819,7.23830947,121510.0,121500.0,5.0058]
[1759880562020,7.29727898,121510.0,121500.0,5.0068]
[1759880562201,8.56616047,121510.0,121500.0,4.53364456]
[1759880562449,8.56616047,121510.0,121500.0,4.47162224]
[1759880562450,8.59116046,121510.0,121500.0,4.47162224]
[1759880562658,7.03406937,121510.0,121500.0,4.42263113]
[1759880562867,7.2570726,121510.0,121500.0,4.42263113]
[1759880563145,5.27809153,121510.0,121500.0,4.42463113]
[1759880563381,7.03298228,121510.0,121500.0,4.42263113]
[1759880563619,7.47134535,121510.0,121500.0,4.42163113]
[1759880563843,6.29344491,121510.0,121500.0,4.42263113]
[1759880564057,6.65948853,121510.0,121500.0,4.42263113]
[1759880564284,6.81378653,121510.0,121500.0,4.42163113]
[1759880564505,7.09140453,121510.0,121500.0,4.42163113]
[1759880564714,7.14640453,121510.0,121500.0,4.42563113]
[1759880564930,7.22640133,121510.0,121500.0,4.42563113]
[1759880565746,7.09329633,121510.0,121500.0,4.42563113]
[1759880565861,7.08198633,121510.0,121500.0,4.42563113]
[1759880566076,7.22640133,121510.0,121500.0,4.42563113]
[1759880566282,7.22640133,121510.0,121500.0,4.42665889]
[1759880567082,7.10754433,121510.0,121500.0,4.42665889]
[1759880567301,7.22640133,121510.0,121500.0,4.42665889]
[1759880567660,2.33685633,121510.0,121500.0,4.42665889]
[1759880567882,6.82819533,121510.0,121500.0,4.42665889]
[1759880568015,7.22640133,121510.0,121500.0,4.42665889]
[1759880568468,1.67469633,121510.0,121500.0,4.42665889]
[1759880568666,7.22644133,121510.0,121500.0,4.42665889]
[1759880568906,7.05381533,121510.0,121500.0,4.42665889]
[1759880569128,7.08621533,121510.0,121500.0,4.42665889]
[1759880569311,7.13966133,121510.0,121500.0,4.42665889]
[1759880569518,6.47416633,121510.0,121500.0,4.42665889]
[1759880569674,2.33693633,121510.0,121500.0,4.42665889]
[1759880569875,7.09518633,121510.0,121500.0,4.42665889]
[1759880570092,6.90126033,121510.0,121500.0,4.42665889]
[1759880570294,6.44594633,121510.0,121500.0,4.42665889]
[1759880570498,6.63457683,121510.0,121500.0,4.42665889]
[1759880570715,2.33866983,121510.0,121500.0,4.42665889]
[1759880571120,6.40291683,121510.0,121500.0,4.42665889]
[1759880571327,5.15506999,121510.0,121500.0,4.42665889]
[1759880571573,6.28337491,121510.0,121500.0,4.42665889]
[1759880571746,3.70515203,121510.0,121500.0,4.42665889]
[1759880571954,4.06916003,121510.0,121500.0,4.42665889]
[1759880572237,4.27905503,121510.0,121500.0,4.42665889]
[1759880572437,4.21425503,121510.0,121500.0,4.42665889]
[1759880572642,4.20717403,121510.0,121500.0,4.42665889]
[1759880572894,4.20717403,121510.0,121500.0,4.42265889]
[1759880572895,4.15217403,121510.0,121500.0,4.42265889]
[1759880573099,4.48988503,121510.0,121500.0,4.42365889]
[1759880573309,4.68411583,121510.0,121500.0,4.42465889]
[1759880573522,1.97118983,121510.0,121500.0,4.42465889]
[1759880573724,3.61439399,121510.0,121500.0,4.42465889]
[1759880573938,1.57023285,121510.0,121500.0,4.42465889]
[1759880574142,1.90400605,121510.0,121500.0,4.42465889]
[1759880574346,2.06865205,121510.0,121500.0,4.42465889]
[1759880574560,2.07606805,121510.0,121500.0,4.42465889]
[1759880574799,2.99547297,121510.0,121500.0,4.42465889]
[1759880575021,2.73965793,121510.0,121500.0,4.42465889]
[1759880575237,3.61326177,121510.0,121500.0,4.42465889]
[1759880575451,2.53592497,121510.0,121500.0,4.42465889]
[1759880575705,3.17845097,121510.0,121500.0,4.42465889]
[1759880575906,3.16317897,121510.0,121500.0,4.42465889]
[1759880576045,3.11016497,121510.0,121500.0,4.42465889]
[1759880576259,1.80361097,121510.0,121500.0,4.42465889]
[1759880576456,3.15763297,121510.0,121500.0,4.42465889]
[1759880576662,2.74250097,121510.0,121500.0,4.42465889]
[1759880576859,1.80361295,121510.0,121500.0,4.42465889]
[1759880577063,2.56090179,121510.0,121500.0,4.42465889]
[1759880577264,2.51805779,121510.0,121500.0,4.42465889]
[1759880577464,1.40221879,121510.0,121500.0,4.42465889]
[1759880577727,2.57275879,121510.0,121500.0,4.42465889]
[1759880577861,1.40221879,121510.0,121500.0,4.42465889]
[1759880578063,2.63250879,121510.0,121500.0,4.42465889]
[1759880578276,2.73990579,121510.0,121500.0,4.42465889]
[1759880578476,2.6610812,121510.0,121500.0,4.42465889]
[1759880578689,0.98354828,121510.0,121500.0,4.42465889]
[1759880578893,2.65020751,121510.0,121500.0,4.42465889]
[1759880579128,2.67758646,121510.0,121500.0,4.42465889]
[1759880579662,2.67758846,121510.0,121500.0,4.42465889]
[1759880579876,1.67078923,121510.0,121500.0,4.42465889]
[1759880580056,1.32872346,121510.0,121500.0,4.42465889]
[1759880580257,1.59933446,121510.0,121500.0,4.42465889]
[1759880580685,1.62207081,121510.0,121500.0,4.42465889]
[1759880580865,1.19459939,121510.0,121500.0,4.45054889]
[1759880581024,1.16118339,121510.0,121500.0,4.45054889]
[1759880581227,1.50118339,121510.0,121500.0,4.45054889]
[1759880581434,0.73491716,121510.0,121500.0,4.45054889]
[1759880581776,1.43649939,121510.0,121500.0,4.47329889]
[1759880582002,1.30570439,121510.0,121500.0,4.47329889]
[1759880582219,0.88701216,121510.0,121500.0,4.49190889]
[1759880582447,0.06265666,121510.0,121500.0,5.16822223]
[1759880582661,0.03,121510.0,121500.0,5.16822223]
[1759880582880,0.26416,121510.0,121500.0,4.74953]
[1759880583106,0.27932826,121510.0,121500.0,4.74953]
[1759880583353,0.26416,121510.0,121500.0,4.74953]
[1759880583563,0.021,121510.0,121500.0,5.16722223]
[1759880583774,0.022,121510.0,121500.0,5.17222223]
[1759880583988,0.022,121510.0,121500.0,5.40638223]
[1759880584164,0.001,121510.0,121500.0,5.82407446]
[1759880584809,0.001,121510.0,121500.0,5.40538223]
[1759880584987,0.23416,121520.0,121510.0,0.1645955]
[1759880585190,0.23416,121520.0,121510.0,0.68292979]
[1759880585410,0.24939388,121520.0,121510.0,0.74354979]
[1759880586027,0.01523388,121520.0,121510.0,0.74354979]
[1759880586236,0.23412,121520.0,121510.0,0.74354979]
[1759880586456,0.23548361,121530.0,121520.0,0.16458196]
[1759880586658,0.02422026,121530.0,121520.0,0.74353625]
[1759880586810,0.25072138,121530.0,121520.0,0.74353625]
[1759880587011,0.25834026,121530.0,121520.0,0.74353625]
[1759880587240,0.24310249,121530.0,121520.0,0.32484402]
[1759880587879,0.24510249,121530.0,121520.0,0.32484402]
[1759880588230,0.24610249,121530.0,121520.0,0.56196402]
[1759880588454,0.26134533,121530.0,121520.0,0.56196402]
[1759880588862,0.26134593,121530.0,121520.0,0.56196402]
[1759880589072,0.24610249,121530.0,121520.0,0.56196402]
[1759880589658,0.23848361,121530.0,121520.0,0.32784402]
[1759880590676,0.23848361,121530.0,121520.0,0.56196402]
[1759880591403,0.23848361,121530.0,121520.0,0.32784402]
[1759880591619,0.41018202,121530.0,121520.0,0.51071402]
[1759880591828,0.26314443,121530.0,121520.0,0.51071402]
[1759880592003,0.24561361,121530.0,121520.0,0.51071402]
[1759880592415,0.23848361,121530.0,121520.0,0.51071402]
[1759880592631,0.23848361,121530.0,121520.0,0.53346402]
[1759880592832,0.23848361,121530.0,121520.0,0.29934402]
[1759880593189,0.23848361,121530.0,121520.0,0.30867402]
[1759880594437,0.24561361,121530.0,121520.0,0.27659402]
[1759880594588,0.24561361,121530.0,121520.0,0.08612206]
[1759880594589,0.90887105,121530.0,121520.0,0.08612206]
[1759880595453,0.32561041,121530.0,121520.0,0.26722402]
[1759880595653,0.90174105,121530.0,121520.0,0.27659402]
[1759880595883,0.21044492,121530.0,121520.0,0.27659402]
[1759880596501,0.21044492,121530.0,121520.0,0.29934402]
[1759880596698,0.21044492,121530.0,121520.0,0.13476206]
[1759880596908,0.21044492,121530.0,121520.0,0.003]
[1759880596909,1.39941938,121530.0,121520.0,0.003]
[1759880597085,1.40387938,121530.0,121520.0,0.003]
[1759880597822,1.83925938,121530.0,121520.0,0.003]
[1759880598323,6.37654644,121530.0,121520.0,0.003]
[1759880599164,4.07282096,121520.0,121510.0,0.00051383]
[1759880599360,4.57711319,121520.0,121510.0,0.00051383]
[1759880599564,5.63841599,121520.0,121510.0,0.00051383]
[1759880599873,5.23147999,121520.0,121510.0,0.00051383]
[1759880600068,5.15431299,121520.0,121510.0,0.00051383]
[1759880600274,5.12552999,121520.0,121510.0,0.00051383]
[1759880600421,5.16155065,121520.0,121510.0,0.00051383]
[1759880600626,0.82600365,121520.0,121510.0,0.00051383]
[1759880600831,5.12719765,121520.0,121510.0,0.00251383]
[1759880601034,5.16282565,121520.0,121510.0,0.00351383]
[1759880601238,5.02048865,121520.0,121510.0,0.00351383]
[1759880601649,4.85670265,121520.0,121510.0,0.00351383]
[1759880601857,4.91198465,121520.0,121510.0,0.00351383]
[1759880602076,5.14200765,121520.0,121510.0,0.00351383]
[1759880602334,0.82092099,121520.0,121510.0,0.00351383]
[1759880602968,4.81653799,121520.0,121510.0,0.00351383]
[1759880603167,4.81891899,121520.0,121510.0,0.00351383]
[1759880603297,4.87804499,121520.0,121510.0,0.00351383]
[1759880603497,4.84932599,121520.0,121510.0,0.00351383]
[1759880603686,4.83396199,121520.0,121510.0,0.00351383]
[1759880603896,6.55476028,121520.0,121510.0,0.00351383]
[1759880604095,0.82147787,121520.0,121510.0,0.00351383]
[1759880604306,2.40291314,121520.0,121510.0,0.00351383]
[1759880604501,2.20839357,121520.0,121510.0,0.00351383]
[1759880604812,1.52480957,121520.0,121510.0,0.00351383]
[1759880605038,1.35939319,121520.0,121510.0,0.00351383]
[1759880605240,1.70929019,121520.0,121510.0,0.00351383]
[1759880605439,1.71670319,121520.0,121510.0,0.00351383]
[1759880605783,1.85616219,121520.0,121510.0,0.00351383]
[1759880605911,1.30608419,121520.0,121510.0,0.00351383]
[1759880606112,1.78907419,121520.0,121510.0,0.00351383]
[1759880606359,1.89613319,121520.0,121510.0,0.00351383]
[1759880606540,1.30608419,121520.0,121510.0,0.00351383]
[1759880606745,1.79136219,121520.0,121510.0,0.00351383]
[1759880607187,1.81857619,121520.0,121510.0,0.00351383]
[1759880607406,1.30608419,121520.0,121510.0,0.00351383]
[1759880607662,2.42205719,121520.0,121510.0,0.00351383]
[1759880607879,2.37544799,121520.0,121510.0,0.00351383]
[1759880608089,1.83786276,121520.0,121510.0,0.00351383]
[1759880608269,2.36201799,121520.0,121510.0,0.00351383]
[1759880608599,2.10261699,121520.0,121510.0,0.00351383]
[1759880609123,2.11850499,121520.0,121510.0,0.00351383]
[1759880609287,2.15743999,121520.0,121510.0,0.00351383]
[1759880609695,2.11582799,121520.0,121510.0,0.00351383]
[1759880609905,2.12306699,121520.0,121510.0,0.00351383]
[1759880610238,2.15166399,121520.0,121510.0,0.00351383]
[1759880610373,2.15215499,121520.0,121510.0,0.00351383]
[1759880610580,1.85415619,121520.0,121510.0,0.00351383]
[1759880610776,0.77420896,121520.0,121510.0,0.02895383]
[1759880610979,0.68890196,121520.0,121510.0,0.02895383]
[1759880611215,0.68890196,121520.0,121510.0,0.23720933]
[1759880611216,0.54026196,121520.0,121510.0,0.23720933]
[1759880611428,0.22058196,121520.0,121510.0,0.24706933]
[1759880611620,0.056,121520.0,121510.0,0.74888362]
[1759880611826,0.29008,121520.0,121510.0,0.74888362]
[1759880612193,0.08331995,121520.0,121510.0,0.74888362]
[1759880612386,0.66456891,121530.0,121520.0,0.16458196]
[1759880612532,0.5,121530.0,121520.0,0.24354196]
[1759880612738,0.23408,121530.0,121520.0,0.24354196]
[1759880613141,0.23408,121530.0,121510.0,0.66692362]
[1759880613142,0.40577841,121530.0,121510.0,0.00051383]
[1759880613349,0.58427419,121520.0,121510.0,0.01323383]
[1759880613552,0.58427419,121520.0,121510.0,0.20193933]
[1759880613814,0.23508,121520.0,121510.0,0.33019139]
[1759880614435,0.16556841,121530.0,121520.0,0.16458196]
[1759880614641,0.39864841,121530.0,121520.0,0.31680402]
[1759880615052,0.39864841,121530.0,121520.0,0.32666402]
[1759880615681,0.39964841,121530.0,121520.0,0.33266402]
[1759880616657,0.39964841,121530.0,121520.0,0.34366402]
[1759880619078,0.81834064,121530.0,121520.0,0.34366402]
[1759880619275,0.39964841,121530.0,121520.0,0.34366402]
[1759880619423,0.001,121530.0,121520.0,0.34366402]
[1759880619633,0.39964841,121530.0,121520.0,0.34366402]
[1759880623986,0.23508,121530.0,121520.0,0.34366402]
[1759880624211,0.23504,121530.0,121520.0,0.34366402]
[1759880626769,0.001,121530.0,121520.0,0.34366402]
[1759880626977,0.23504,121530.0,121520.0,0.34366402]
[1759880630597,0.001,121530.0,121520.0,0.34366402]
[1759880630806,0.23404,121540.0,121530.0,0.16456841]
[1759880630979,0.25836883,121550.0,121540.0,0.16455487]
[1759880631194,0.49240883,121550.0,121540.0,0.23269487]
[1759880631562,0.4934361,121550.0,121540.0,0.23269487]
[1759880632011,0.4078361,121550.0,121540.0,0.31581693]
[1759880632213,0.1737961,121550.0,121540.0,0.31581693]
[1759880632364,0.5392801,121550.0,121540.0,0.13245206]
[1759880632572,0.16455487,121540.0,121530.0,0.01001115]
[1759880632817,0.16455487,121540.0,121530.0,0.09313321]
[1759880633029,0.17168487,121540.0,121530.0,0.27412162]
[1759880634209,0.16555487,121540.0,121530.0,0.30326162]
[1759880635611,0.16555487,121540.0,121530.0,0.32526162]
[1759880635816,0.17268487,121540.0,121530.0,0.30112162]
[1759880636310,0.16555487,121540.0,121530.0,0.32526162]
[1759880638022,0.17319855,121540.0,121530.0,0.30112162]
[1759880638433,0.17765855,121540.0,121530.0,0.02715115]
[1759880638817,0.17319855,121540.0,121530.0,0.02715115]
[1759880640054,0.17319855,121540.0,121530.0,0.05258115]
[1759880640990,0.48566855,121540.0,121530.0,0.24128956]
[1759880641221,0.48566855,121540.0,121530.0,0.09533115]
[1759880642875,0.49279855,121540.0,121530.0,0.05258115]
[1759880644103,0.48566855,121540.0,121530.0,0.07672115]
[1759880644537,0.49279855,121540.0,121530.0,0.05258115]
[1759880645480,0.48566855,121540.0,121530.0,0.07672115]
[1759880647066,0.40002855,121540.0,121530.0,0.07672115]
[1759880647293,0.23547368,121540.0,121530.0,0.36937846]
[1759880647500,0.16606855,121540.0,121530.0,0.35292162]
[1759880647718,0.00151368,121540.0,121530.0,0.35292162]
[1759880648169,0.23547368,121540.0,121530.0,0.35292162]
[1759880651085,0.00151368,121540.0,121530.0,0.35292162]
[1759880651266,0.23547368,121540.0,121530.0,0.35292162]
[1759880651495,0.00151368,121540.0,121530.0,0.35292162]
[1759880660805,0.00151368,121540.0,121530.0,0.33370162]
[1759880661008,0.17319855,121540.0,121530.0,0.30027162]
[1759880661220,0.00864368,121540.0,121530.0,0.30027162]
[1759880661896,0.00864368,121540.0,121530.0,0.32441162]
[1759880662099,0.17319855,121540.0,121530.0,0.32441162]
[1759880662302,0.17319855,121540.0,121530.0,0.11027321]
[1759880662303,0.21435909,121540.0,121530.0,0.11027321]
[1759880662985,0.21435909,121540.0,121530.0,0.13570321]
[1759880667041,0.17319855,121540.0,121530.0,0.13570321]
[1759880667667,0.17319855,121540.0,121530.0,0.30027162]
[1759880667871,0.17319855,121540.0,121530.0,0.13570321]
[1759880669522,0.17319855,121540.0,121530.0,0.30027162]
[1759880673647,0.23543368,121540.0,121530.0,0.32287162]
[1759880673852,0.39998855,121540.0,121530.0,0.33275162]
[1759880674707,0.39998855,121540.0,121530.0,0.35175162]
[1759880675893,0.00151368,121540.0,121530.0,0.35175162]
[1759880676101,0.23543368,121540.0,121530.0,0.35175162]
[1759880676808,0.00151368,121540.0,121530.0,0.35175162]
[1759880699972,0.00151368,121540.0,121530.0,0.38190352]
[1759880701380,0.00151368,121540.0,121530.0,0.40661034]
[1759880705077,0.00151368,121540.0,121530.0,0.64041034]
[1759880705648,0.00151368,121540.0,121530.0,0.40661034]
[1759880706041,0.00151368,121540.0,121530.0,0.64041034]
[1759880706619,0.00151368,121540.0,121530.0,0.40661034]
[1759880706913,0.00151368,121540.0,121530.0,0.64041034]
[1759880708381,0.00051368,121540.0,121530.0,0.61341034]
[1759880708609,0.00051368,121540.0,121530.0,0.62241034]
[1759880708908,0.00151368,121540.0,121530.0,0.62241034]
[1759880710325,0.00051368,121540.0,121530.0,0.61341034]
[1759880710531,0.00051368,121540.0,121530.0,0.64141034]
[1759880710749,0.00151368,121540.0,121530.0,0.62141034]
[1759880711093,0.00151368,121540.0,121530.0,0.64941034]
[1759880712645,0.00151368,121540.0,121530.0,0.64937034]
[1759880714491,0.00151368,121540.0,121530.0,0.98937034]
[1759880718057,0.00151368,121540.0,121530.0,0.75561034]
[1759880718293,0.00151368,121540.0,121530.0,0.98937034]
[1759880721047,0.00151368,121540.0,121530.0,0.75561034]
[1759880721253,0.00151368,121540.0,121530.0,0.98937034]
[1759880721824,0.00151368,121540.0,121530.0,0.75561034]
[1759880722246,0.00151368,121540.0,121530.0,0.98937034]
[1759880723207,0.00151368,121540.0,121530.0,0.61917844]
[1759880723412,0.00151368,121540.0,121530.0,0.38545844]
[1759880723530,0.00151368,121540.0,121530.0,0.61917844]
[1759880723735,0.00151368,121540.0,121530.0,0.64933034]
[1759880725510,0.00151368,121540.0,121530.0,0.41561034]
[1759880725680,0.00151368,121540.0,121530.0,0.64933034]
[1759880726506,0.00151368,121540.0,121530.0,0.41561034]
[1759880726705,0.00151368,121540.0,121530.0,0.64933034]
[1759880726905,0.16606855,121540.0,121530.0,0.38545844]
[1759880727109,0.20625956,121540.0,121530.0,0.11927321]
[1759880727368,0.17319855,121540.0,121530.0,0.11927321]
[1759880727738,0.17319855,121540.0,121530.0,0.10086321]
[1759880727939,0.00764368,121540.0,121530.0,0.27409162]
[1759880728143,0.00051368,121540.0,121530.0,0.34882162]
[1759880728370,0.16506855,121540.0,121530.0,0.34882162]
[1759880729325,0.16606855,121540.0,121530.0,0.35282162]
[1759880729781,0.00151368,121540.0,121530.0,0.35282162]
[1759880730013,0.00051368,121540.0,121530.0,0.32682162]
[1759880730149,0.00051368,121540.0,121530.0,0.35082162]
[1759880730575,0.00151368,121540.0,121530.0,0.35682162]
[1759880731313,0.16606855,121540.0,121530.0,0.35682162]
[1759880731515,0.00151368,121540.0,121530.0,0.35682162]
[1759880733720,0.00151368,121540.0,121530.0,0.38697352]
[1759880734512,0.00151368,121540.0,121530.0,0.72697352]
[1759880734724,0.00151368,121540.0,121530.0,0.75167914]
[1759880735830,0.00051368,121540.0,121530.0,0.83123914]
[1759880736275,0.00151368,121540.0,121530.0,0.81523914]
[1759880736687,0.00051368,121540.0,121530.0,0.83523914]
[1759880736888,0.00151368,121540.0,121530.0,0.81623914]
[1759880737071,0.00151368,121540.0,121530.0,0.84623914]
[1759880737471,0.00051368,121540.0,121530.0,0.83723914]
[1759880737688,0.00151368,121540.0,121530.0,0.90820526]
[1759880740655,0.00151368,121540.0,121530.0,0.84623914]
[1759880741536,0.00151368,121540.0,121530.0,0.76067914]
[1759880741743,0.00151368,121540.0,121530.0,1.07995914]
[1759880742477,0.00151368,121540.0,121530.0,1.14318396]
[1759880745903,0.00151368,121540.0,121530.0,1.16818395]
[1759880752340,0.00151368,121540.0,121530.0,0.84890395]
[1759880752538,0.12198283,121580.0,121570.0,0.16451427]
[1759880752740,0.12198283,121580.0,121570.0,0.16229206]
[1759880752946,0.13357283,121580.0,121570.0,0.08312206]
[1759880753372,0.0673778,121580.0,121570.0,0.08312206]
[1759880753784,0.0673778,121580.0,121570.0,0.10527321]
[1759880754266,0.1373778,121580.0,121570.0,0.10527321]
[1759880754462,0.17059769,121580.0,121570.0,0.10527321]
[1759880754668,0.40423769,121580.0,121570.0,0.02515115]
[1759880755262,0.3710178,121580.0,121570.0,0.02515115]
[1759880755692,0.3710178,121580.0,121570.0,0.02215115]
[1759880756042,0.4521178,121580.0,121570.0,0.01819115]
[1759880756360,0.4521178,121580.0,121570.0,0.03819115]
[1759880757642,0.1329178,121580.0,121570.0,0.03819115]
[1759880757800,0.1329178,121580.0,121570.0,0.34795748]
[1759880757801,0.23450074,121580.0,121570.0,0.34795748]
[1759880758012,0.46814074,121580.0,121570.0,0.34795748]
[1759880758348,0.47019468,121580.0,121570.0,0.34795748]
[1759880758581,0.23655468,121580.0,121570.0,0.34795748]
[1759880759515,0.23655468,121580.0,121570.0,0.33826748]
[1759880759713,0.23655468,121580.0,121570.0,0.32881748]
[1759880760353,0.24368468,121580.0,121570.0,0.28582748]
[1759880761030,0.47732468,121580.0,121570.0,0.28582748]
[1759880761233,0.24368468,121580.0,121570.0,0.30972748]
[1759880761462,0.47732468,121580.0,121570.0,0.30972748]
[1759880761641,0.47019468,121580.0,121570.0,0.30972748]
[1759880761849,0.23655468,121580.0,121570.0,0.30972748]
[1759880762056,0.47019468,121580.0,121570.0,0.30972748]
[1759880763124,0.54382626,121580.0,121570.0,0.10527321]
[1759880763329,0.54828626,121580.0,121570.0,0.10527321]
[1759880763740,0.54382626,121580.0,121570.0,0.10527321]
[1759880764359,0.47732468,121580.0,121570.0,0.28582748]
[1759880764565,0.47019468,121580.0,121570.0,0.31940748]
[1759880765190,0.47019468,121580.0,121570.0,0.32881748]
[1759880765395,0.07205394,121580.0,121570.0,0.34795748]
[1759880765549,0.07205394,121580.0,121570.0,0.61174938]
[1759880765550,0.00205394,121580.0,121570.0,0.61174938]
[1759880766892,0.00205394,121580.0,121570.0,0.58974938]
[1759880767030,0.00205394,121580.0,121570.0,0.62074938]
[1759880767873,0.00205394,121580.0,121570.0,0.70630938]
[1759880768634,0.00205394,121580.0,121570.0,0.38710938]
[1759880768872,0.00205394,121580.0,121570.0,0.71466254]
[1759880771741,0.00205394,121580.0,121570.0,0.7393575]
[1759880775109,0.00205394,121580.0,121570.0,0.4201575]
[1759880775309,0.00205394,121580.0,121570.0,0.38710938]
[1759880775511,0.00205394,121580.0,121570.0,0.59055748]
[1759880775910,0.00205394,121580.0,121570.0,0.62070938]
[1759880776572,0.17814468,121580.0,121570.0,0.11427321]
[1759880776801,0.21240788,121580.0,121570.0,0.11427321]